[Event "30th NATO Chess-ch 2019"]
[Site "Berlin"]
[Date "2019.09.20"]
[Round "7.4"]
[White "Pietruszewski, Marcin"]
[Black "Andersen, Hans-Christoph"]
[Result "1/2-1/2"]
[ECO "B12"]
[WhiteElo "2215"]
[BlackElo "2201"]
[Annotator "NA"]
[PlyCount "69"]
[EventDate "2019.09.16"]
[EventType "swiss"]
[EventCountry "GER"]
[SourceTitle "playchess.com"]
[Source "ChessBase"]
[SourceQuality "1"]
[TimeControl "40/7200:1800"]

1. e4 {[%emt 2:00:00]} c6 {[%emt 1:59:00]} 2. d4 {[%emt 1:59:00]} d5 {[%emt 1:58:48]} 3. e5 {[%emt 1:58:48]} Bf5 {[%emt 1:59:32]} 4. Nf3 {[%emt 1:58:26]} e6 {[%emt 1:59:23]} 5. Be2 {[%emt 1:58:09]} c5 {[%emt 1:57:02]} 6. Be3 {[%emt 1:45:34]} cxd4 {[%emt 1:45:34]} 7. Nxd4 {[%emt 1:44:49]} Ne7 {[%emt 1:54:50]} 8. O-O {[%emt 1:43:30]} Nbc6 {[%emt 1:52:54]} 9. Bb5 {[%emt 1:43:19] B12: Caro-Kann: Advance Variation} a6 {[%emt 1:49:35]} 10. Bxc6+ {[%emt 1:40:31]} bxc6 {[%emt 1:49:14]} 11. c4 {[%emt 1:39:24]} Qd7 {[%emt 1:47:04]} 12. c5 $146 {[%emt 1:47:04]} ({Predecessor:} 12. Nc3 dxc4 13. Na4 Nd5 14. Nxf5 exf5 15. Rc1 c3 16. Qc2 Be7 17. Nxc3 Nxe3 18. fxe3 {1-0 (26) Nepomniachtchi,I (2733)-Laznicka,V (2654) Heraklio 2017}) 12... Bxb1 {[%emt 1:36:16]} 13. Rxb1 {[%emt 1:17:44]} Ng6 {[%emt 1:17:44]} 14. Nf3 {[%emt 1:09:40]} a5 {[%emt 1:33:08]} 15. Qc2 {[%emt 0:43:44]} Be7 {[%emt 0:43:44]} 16. b4 {[%emt 0:34:46]} axb4 {[%emt 0:38:30]} 17. Rxb4 {[%emt 0:34:44]} O-O {[%emt 0:37:52]} 18. Rfb1 {[%emt 0:34:32]} Ra7 {[%emt 0:35:42]} 19. a4 {[%emt 0:25:45]} Qc7 {[%emt 0:28:54]} 20. Bd4 {[%emt 0:19:58]} Rfa8 {[%emt 0:27:45]} 21. Ra1 {[%emt 0:27:45]} Nf8 22. Ne1 $11 {[%emt 0:19:42]} Nd7 {[%emt 0:19:53]} 23. Nd3 {[%emt 0:19:41]} Rb7 {[%emt 0:18:54]} 24. Rab1 {[%emt 0:15:48]} Rab8 {[%emt 0:16:23]} 25. Qc3 {[%emt 0:13:31]} Bd8 {[%emt 0:13:26]} 26. f4 {[%emt 0:08:56]} Rxb4 {[%emt 0:10:10]} 27. Rxb4 {[%emt 0:08:54]} Rxb4 {[%emt 0:07:12]} 28. Qxb4 {[%emt 0:08:52]} Qb8 {[%emt 0:08:52]} 29. Bc3 {[%emt 0:06:58]} Nf8 {[%emt 0:04:44] Bb4 Kb7} 30. Be1 {[%emt 0:03:04] Ka7 0:03:04 g4 0:01:02} g6 {[%emt 0:00:59]} 31. Bd2 {[%emt 0:00:51] Kb7 0:00:57 Be1 0:00:41 Kc8 0:00:41 h3 0:00:21 Kb7 0:00:12 Ke3 0:00:06} Nd7 {[%emt 0:21:55]} 32. Bc3 {[%emt 0:18:20]} Be7 {[%emt 0:17:36]} 33. Bd4 {[%emt 0:18:19]} Nf8 {[%emt 0:18:19] Kf3 0:11:23 Kc7 0:13:22} 34. Bf2 {[%emt 0:09:53] Kb7 0:13:02 Bd4 0:06:20 Kc7 0:12:56 Bc3 0:12:56} Nd7 {[%emt 0:12:05]} 35. Bd4 {[%emt 0:06:12]} 1/2-1/2

[Event "30th NATO Chess-ch 2019"]
[Site "Berlin"]
[Date "2019.09.20"]
[Round "7.5"]
[White "Wantiez, Fabrice"]
[Black "Sycz, Dariusz"]
[Result "1/2-1/2"]
[ECO "C41"]
[WhiteElo "2225"]
[BlackElo "2215"]
[Annotator "NA"]
[PlyCount "157"]
[EventDate "2019.09.16"]
[EventType "swiss"]
[EventCountry "GER"]
[SourceTitle "playchess.com"]
[Source "ChessBase"]
[SourceQuality "1"]
[TimeControl "40/7200:1800"]

1. e4 {[%emt 2:00:00]} d6 {[%emt 1:59:57]} 2. d4 {[%emt 1:59:48]} Nf6 {[%emt 1:59:48]} 3. Nc3 {[%emt 1:59:44]} e5 {[%emt 1:59:42]} 4. Nf3 {[%emt 1:59:38]} Nbd7 {[%emt 1:59:10]} 5. g3 {[%emt 1:59:10]} Be7 {[%emt 1:59:26]} 6. Bg2 {[%emt 1:58:49]} c6 {[%emt 1:52:21]} 7. a4 {[%emt 1:58:43]} O-O {[%emt 1:46:25]} 8. O-O {[%emt 1:46:25]} Re8 {[%emt 1:43:19]} 9. Re1 {[%emt 1:58:04] C41: Philidor Defence} Qc7 {[%emt 1:40:30]} (9... b6 10. b3 a6 11. Bb2 Bb7 12. Nb1 Bf8 13. Nbd2 Qc7 14. c4 exd4 15. Nxd4 {1-0 (33) Henderson de la Fuente,L (2471)-Kadric,D (2562) Evora 2019}) 10. h3 {[%emt 1:52:20]} Nf8 {[%emt 1:52:20]} 11. Be3 {[%emt 1:42:15]} Bd7 $146 {[%emt 1:24:51]} ({Predecessor:} 11... b6 12. Nh2 Bb7 13. Ng4 Ne6 14. d5 cxd5 15. exd5 Nf8 16. Nxf6+ Bxf6 {½-½ (45) Sherbakov,V (2425)-Djachkov,S (2400) Ekaterinburg 2002}) 12. Kh2 {[%emt 1:29:05]} Ng6 {[%emt 1:18:06]} 13. Qd3 {[%emt 1:25:03]} Rad8 {[%emt 1:07:09]} 14. a5 {[%emt 1:12:11]} b5 {[%emt 1:12:11]} 15. axb6 $1 {[%emt 1:09:04]} axb6 {[%emt 0:39:31]} 16. Qc4 {[%emt 0:39:31]} exd4 {[%emt 0:35:52]} 17. Nxd4 {[%emt 0:35:52]} Ne5 {[%emt 1:03:24]} 18. Qf1 {[%emt 0:33:26]} b5 {[%emt 0:31:55]} 19. f4 {[%emt 0:48:51]} Nc4 {[%emt 0:29:47]} 20. Bc1 {[%emt 0:29:47]} Bf8 {[%emt 0:26:22]} 21. b3 {[%emt 0:48:35]} Nb6 {[%emt 0:26:13]} 22. Bb2 {[%emt 0:46:05]} b4 {[%emt 0:25:30]} 23. Nd1 {[%emt 0:43:41]} d5 {[%emt 0:21:57]} 24. e5 {[%emt 0:42:39]} Ne4 $1 {[%emt 0:20:41]} 25. Bxe4 {[%emt 0:41:59]} dxe4 {[%emt 0:20:37]} 26. Nf2 {[%emt 0:38:56]} c5 {[%emt 0:18:40]} 27. Nb5 {[%emt 0:38:49]} Qc6 {[%emt 0:16:27]} 28. c4 {[%emt 0:33:38]} bxc3 {[%emt 0:14:41]} 29. Nxc3 {[%emt 0:33:35]} Be6 {[%emt 0:13:44]} 30. Nfxe4 {[%emt 0:31:50]} Bxb3 {[%emt 0:31:50]} 31. Qb5 {[%emt 0:29:15]} Qxb5 {[%emt 0:12:22]} 32. Nxb5 {[%emt 0:29:10]} Rd3 {[%emt 0:29:10]} 33. Ba3 {[%emt 0:08:41]} Bd5 {[%emt 0:25:04]} 34. Nc7 {[%emt 0:06:14]} Rc8 {[%emt 0:24:11]} 35. Nxd5 {[%emt 0:24:07]} Rxd5 {[%emt 0:04:37]} 36. Rec1 {[%emt 0:04:37]} Nd7 {[%emt 0:03:40]} 37. Rc3 {[%emt 0:21:27]} Rd4 {[%emt 0:21:27]} 38. Re1 {[%emt 0:20:58]} h6 {[%emt 0:02:20]} 39. Kg2 {[%emt 0:20:34]} Ra4 $11 {[%emt 0:00:48]} 40. Kf3 {[%emt 0:19:58]} Rd4 {[%emt 0:00:25]} 41. Rec1 {[%emt 0:19:03]} Rd5 {[%emt 0:24:09]} 42. R1c2 {[%emt 0:43:57]} Rc6 {[%emt 0:43:57]} 43. Rd2 {[%emt 0:43:34]} Rxd2 {[%emt 0:43:34]} 44. Nxd2 {[%emt 0:43:29]} f6 {[%emt 0:16:55]} 45. Ke4 {[%emt 0:15:48]} Re6 {[%emt 0:14:24]} 46. Nc4 {[%emt 0:41:11]} Re8 {[%emt 0:12:19]} 47. Kd5 {[%emt 0:40:08]} Rd8 {[%emt 0:11:07]} 48. Kc6 {[%emt 0:38:28]} Nb8+ {[%emt 0:11:02]} 49. Kc7 {[%emt 0:11:02]} Re8 {[%emt 0:10:55]} 50. Rf3 {[%emt 0:33:28]} Na6+ {[%emt 0:09:48]} 51. Kd7 {[%emt 0:33:07]} Re7+ {[%emt 0:33:07]} 52. Kc6 {[%emt 0:31:05]} Re6+ {[%emt 0:08:08]} 53. Kd5 {[%emt 0:08:08]} Nc7+ {[%emt 0:30:47]} 54. Ke4 {[%emt 0:30:41]} Ra6 {[%emt 0:07:35]} 55. Bb2 {[%emt 0:24:33]} Ra4 {[%emt 0:06:44]} 56. Kd3 {[%emt 0:22:42]} Ne6 {[%emt 0:06:11]} 57. h4 {[%emt 0:06:11]} Be7 {[%emt 0:05:45]} 58. Rf1 {[%emt 0:05:45]} Rb4 {[%emt 0:05:23]} 59. Bc3 {[%emt 0:05:23]} Rb7 {[%emt 0:20:57]} 60. Ra1 {[%emt 0:19:21]} Rd7+ {[%emt 0:04:36]} 61. Ke4 {[%emt 0:18:30]} Kf7 {[%emt 0:04:35]} 62. Ra6 {[%emt 0:16:52]} g6 {[%emt 0:16:52]} 63. Ne3 {[%emt 0:16:01]} h5 {[%emt 0:03:59]} 64. Nd5 {[%emt 0:15:44]} Rb7 {[%emt 0:03:37]} 65. Ra8 {[%emt 0:03:37]} Rd7 {[%emt 0:12:50]} 66. Rh8 {[%emt 0:12:29]} Kg7 {[%emt 0:12:29]} 67. Re8 {[%emt 0:12:13]} Kf7 {[%emt 0:12:13]} 68. Rxe7+ Rxe7 69. Nxe7 {[%emt 0:03:12]} Kxe7 {[%emt 0:03:12]} 70. Kd5 {[%emt 0:03:12]} g5 {[%emt 0:11:24]} 71. hxg5 Nxg5 72. Bd2 {[%emt 0:10:38]} Nf3 {[%emt 0:02:43]} 73. Be3 {[%emt 0:10:06]} c4 {[%emt 0:02:40]} 74. Bc5+ {[%emt 0:09:40]} Kd7 {[%emt 0:02:39]} 75. e6+ {[%emt 0:09:33]} Ke8 {[%emt 0:02:38]} 76. Kxc4 {[%emt 0:09:22]} h4 {[%emt 0:02:36]} 77. g4 {[%emt 0:02:36]} h3 {[%emt 0:02:25]} 78. Bd6 {[%emt 0:08:52]} h2 {[%emt 0:02:19] Bxh2 0:08:48 Nxh2 0:02:17} 79. g5 {[%emt 0:08:40] Nf3 0:08:40} 1/2-1/2

[Event "30th NATO Chess-ch 2019"]
[Site "Berlin"]
[Date "2019.09.20"]
[Round "7.6"]
[White "Cichy, Kamil"]
[Black "Papasimakopoulos, Alexandros"]
[Result "1/2-1/2"]
[ECO "C06"]
[WhiteElo "2106"]
[BlackElo "2218"]
[Annotator "ChessBase"]
[PlyCount "74"]
[EventDate "2019.09.16"]
[EventType "swiss"]
[EventCountry "GER"]
[SourceTitle "playchess.com"]
[Source "ChessBase"]
[SourceQuality "1"]
[TimeControl "40/7200:1800"]

1. e4 {[%emt 2:00:00]} e6 {[%emt 1:59:10]} 2. d4 {[%emt 1:59:26]} d5 {[%emt 1:59:05]} 3. Nd2 {[%emt 1:59:05]} Nf6 {[%emt 1:57:47]} 4. e5 {[%emt 1:57:31]} Nfd7 {[%emt 1:57:31]} 5. c3 {[%emt 1:56:27]} b6 {[%emt 1:56:49]} 6. Bd3 {[%emt 1:50:31]} Ba6 {[%emt 1:56:43]} 7. Bxa6 {[%emt 1:47:52]} Nxa6 {[%emt 1:47:52]} 8. Ne2 {[%emt 1:46:48]} c5 {[%emt 1:56:22]} 9. O-O {[%emt 1:56:22]} Be7 {[%emt 1:54:51]} 10. f4 {[%emt 1:36:09]} g6 {[%emt 1:36:09]} 11. Nf3 {[%emt 1:33:20]} Nc7 {[%emt 1:33:20]} 12. Be3 {[%emt 1:20:19]} a5 {[%emt 1:45:45]} 13. g4 {[%emt 1:45:45]} h5 {[%emt 1:45:39]} 14. h3 {[%emt 1:10:48]} hxg4 {[%emt 1:10:48]} 15. hxg4 {[%emt 1:10:39]} Qc8 {[%emt 1:10:39]} 16. Ng3 {[%emt 1:05:32]} Qa6 {[%emt 1:40:12]} 17. Kg2 {[%emt 0:57:17]} O-O-O {[%emt 1:40:03]} 18. Qd2 {[%emt 1:40:03]} a4 {[%emt 1:39:50]} 19. Qe2 {[%emt 1:39:50]} Kb7 {[%emt 0:39:42]} 20. Rh1 {[%emt 0:36:47]} a3 {[%emt 0:36:47]} 21. b3 {[%emt 1:28:26]} Nb5 {[%emt 0:34:52]} 22. c4 {[%emt 1:24:43]} dxc4 {[%emt 1:24:10]} 23. bxc4 {[%emt 0:27:00]} Nxd4 {[%emt 0:27:00]} 24. Bxd4 {[%emt 0:25:43]} cxd4 {[%emt 1:20:43]} 25. Nxd4 {[%emt 0:25:36]} Nb8 {[%emt 1:19:04]} 26. Qe4+ {[%emt 1:19:04]} Kc7 {[%emt 1:19:03]} 27. Nb5+ {[%emt 0:19:06]} Kc8 {[%emt 1:17:44]} 28. Rxh8 {[%emt 0:17:48]} Rxh8 {[%emt 1:17:35]} 29. Qf3 {[%emt 0:16:25]} Qa4 {[%emt 1:14:07]} 30. Rc1 {[%emt 1:14:07]} Rd8 {[%emt 1:09:59]} 31. Ne4 {[%emt 0:14:20]} Qb4 {[%emt 1:09:58]} 32. Rc2 {[%emt 0:09:13]} Qb1 {[%emt 1:09:12]} 33. Re2 {[%emt 0:08:17]} Qd1 {[%emt 0:50:38]} 34. Na7+ Kc7 {[%emt 0:50:37]} 35. Nb5+ {[%emt 0:05:05]} Kc8 {[%emt 0:50:31]} 36. Na7+ {[%emt 0:04:49]} Kc7 {[%emt 0:04:49]} 37. Nb5+ {[%emt 0:04:47]} Kc8 {[%emt 0:49:08]} 1/2-1/2

[Event "30th NATO Chess-ch 2019"]
[Site "Berlin"]
[Date "2019.09.20"]
[Round "7.7"]
[White "Kersic, Matej"]
[Black "Helbig, Mark"]
[Result "1/2-1/2"]
[ECO "B07"]
[WhiteElo "2122"]
[BlackElo "2332"]
[Annotator "NA"]
[PlyCount "160"]
[EventDate "2019.09.16"]
[EventType "swiss"]
[EventCountry "GER"]
[SourceTitle "playchess.com"]
[Source "ChessBase"]
[SourceQuality "1"]
[TimeControl "40/7200:1800"]

1. e4 {[%emt 2:00:00]} g6 {[%emt 1:59:37]} 2. d4 {[%emt 1:59:11]} Bg7 {[%emt 1:59:30]} 3. Nf3 {[%emt 1:59:30]} d6 {[%emt 1:59:21]} 4. h3 {[%emt 1:57:03]} Nf6 {[%emt 1:57:48]} 5. Bd3 {[%emt 1:55:41]} O-O {[%emt 1:55:41]} 6. O-O {[%emt 1:55:27]} Nbd7 {[%emt 1:54:58]} 7. c3 {[%emt 1:49:18]} e5 {[%emt 1:49:18]} 8. Be3 {[%emt 1:49:31]} Re8 {[%emt 1:48:21] B07: Pirc Defence: Miscellaneous Systems} 9. Nbd2 {[%emt 1:48:21]} a5 $146 {[%emt 1:44:29]} ({Predecessor:} 9... d5 10. dxe5 Nxe4 11. Nxe4 dxe4 12. Bg5 f6 13. exf6 Bxf6 14. Bxf6 Qxf6 15. Re1 Nc5 16. Bc4+ {1-0 (67) Chernin,A (2560)-Tal,M (2630) Saint John 1988}) 10. Qc2 {[%emt 1:44:24]} b6 {[%emt 1:38:53]} 11. Rfe1 {[%emt 1:25:30]} Bb7 {[%emt 1:18:27]} 12. Rad1 {[%emt 1:18:27]} Qe7 {[%emt 1:16:08]} 13. d5 {[%emt 1:16:08]} Qf8 {[%emt 1:08:01]} 14. g4 {[%emt 0:54:45]} Qe7 {[%emt 0:54:45]} 15. Nh2 {[%emt 0:52:58]} h6 {[%emt 0:46:51]} 16. Kg2 {[%emt 0:45:47]} ({White should try} 16. Bb5 $11) 16... c6 {[%emt 0:41:10]} 17. c4 {[%emt 0:45:16]} Nc5 {[%emt 0:40:13]} (17... Rec8 $5 {[%cal Rc6d5]} 18. Qb1 a4 $11) 18. Nhf1 {[%emt 0:40:13]} cxd5 {[%emt 0:41:01]} 19. cxd5 {[%emt 0:31:51]} Rec8 {[%emt 0:28:34]} 20. Qb1 $1 {[%emt 0:28:34]} Nxd3 {[%emt 0:39:47]} 21. Qxd3 {[%emt 0:39:43]} Ba6 {[%emt 0:24:54]} 22. Qb1 {[%emt 0:37:59]} Nd7 {[%emt 0:24:36]} 23. Rc1 {[%emt 0:24:36]} Nc5 {[%emt 0:37:35]} 24. Nc4 {[%emt 0:23:53]} Rab8 {[%emt 0:19:00]} 25. b3 {[%emt 0:35:12]} Qd8 {[%emt 0:15:19]} 26. f3 {[%emt 0:30:37]} Bf8 {[%emt 0:14:47]} 27. Red1 {[%emt 0:14:47]} Kh7 {[%emt 0:27:10]} 28. Qb2 {[%emt 0:13:33]} Be7 {[%emt 0:11:09]} 29. Qd2 {[%emt 0:11:09]} Bg5 {[%emt 0:09:44]} (29... a4 $15 30. Qb2 Bb5) 30. Nb2 {[%emt 0:15:11]} Qe7 {[%emt 0:07:52]} 31. Rc3 {[%emt 0:07:52]} Rg8 {[%emt 0:04:53]} 32. Ng3 {[%emt 0:10:12]} b5 {[%emt 0:03:34]} 33. Rc2 {[%emt 0:08:36]} Bxe3 {[%emt 0:02:10]} 34. Qxe3 {[%emt 0:08:35]} Rgc8 {[%emt 0:08:35]} 35. Rdc1 {[%emt 0:08:30]} Qg5 {[%emt 0:01:44]} 36. Qxg5 {[%emt 0:01:43]} hxg5 {[%emt 0:01:43]} 37. Nf1 {[%emt 0:07:59]} Kg7 {[%emt 0:01:28]} 38. Ne3 {[%emt 0:07:47]} Kf6 {[%emt 0:01:27]} 39. Kg3 {[%emt 0:07:24]} Rh8 {[%emt 0:00:53]} 40. Rh2 {[%emt 0:06:41]} Rbc8 {[%emt 0:00:25]} 41. Rhc2 $11 {[%emt 0:00:25]} Ke7 {[%emt 0:28:03]} 42. Kg2 {[%emt 0:28:03]} Rhd8 {[%emt 0:21:49]} 43. Kg3 {[%emt 0:30:36]} Ra8 {[%emt 0:19:53]} 44. Rd1 {[%emt 0:19:53]} Rdc8 {[%emt 0:16:22]} 45. Rdc1 {[%emt 0:26:26]} Nd7 {[%emt 0:12:46]} 46. Rxc8 {[%emt 0:25:13]} Rxc8 {[%emt 0:12:19]} 47. Rxc8 {[%emt 0:25:06]} Bxc8 {[%emt 0:12:17]} 48. Kf2 {[%emt 0:24:18]} Nc5 {[%emt 0:11:43]} 49. Ke2 {[%emt 0:11:43]} Ba6 {[%emt 0:23:04]} 50. Kd2 {[%emt 0:22:45]} Kd7 {[%emt 0:11:01]} 51. Kc2 {[%emt 0:11:01]} Kc7 {[%emt 0:10:07]} 52. Kd2 {[%emt 0:20:08]} Kb6 {[%emt 0:20:08]} 53. Kc2 {[%emt 0:09:52]} Nd7 {[%emt 0:19:56]} 54. Kd2 {[%emt 0:17:35]} Kc7 {[%emt 0:06:04]} 55. Kc2 {[%emt 0:06:04]} Nb6 {[%emt 0:05:49]} 56. Kd2 {[%emt 0:14:47]} Bc8 {[%emt 0:14:47]} 57. a3 {[%emt 0:05:35]} Bd7 {[%emt 0:05:08]} 58. Kc3 {[%emt 0:11:56]} Be8 {[%emt 0:03:40]} 59. b4 {[%emt 0:10:49]} a4 {[%emt 0:03:37]} 60. Kd2 {[%emt 0:09:47]} Bd7 {[%emt 0:03:28]} 61. Nbd1 {[%emt 0:03:28]} Nc8 {[%emt 0:02:57]} 62. Nc3 {[%emt 0:02:57]} Ne7 {[%emt 0:02:44]} 63. Ke2 {[%emt 0:07:49]} Kb6 {[%emt 0:02:07]} 64. Kf2 {[%emt 0:07:25]} Kc7 {[%emt 0:01:42]} 65. Kg3 {[%emt 0:06:50]} Kd8 {[%emt 0:01:31]} 66. h4 {[%emt 0:06:07]} gxh4+ {[%emt 0:01:29]} 67. Kxh4 {[%emt 0:05:56]} f6 {[%emt 0:05:56]} 68. Ng2 {[%emt 0:01:28]} Ke8 {[%emt 0:01:11]} 69. Kg3 {[%emt 0:01:28]} g5 {[%emt 0:03:55]} 70. Ne2 {[%emt 0:03:18]} Kf7 {[%emt 0:01:05]} 71. Ne3 {[%emt 0:03:03]} Kg7 {[%emt 0:03:03]} 72. Kf2 {[%emt 0:01:01]} Kf7 {[%emt 0:01:01]} 73. Ng3 {[%emt 0:01:01]} Kg6 {[%emt 0:00:57]} 74. Ke2 {[%emt 0:02:24]} Kf7 {[%emt 0:00:55]} 75. Kd3 {[%emt 0:02:23]} Kg6 {[%emt 0:00:53]} 76. Nd1 {[%emt 0:00:53]} Kf7 {[%emt 0:01:38]} 77. Nf5 {[%emt 0:01:32]} Nxf5 {[%emt 0:00:44]} 78. exf5 Ke7 {[%emt 0:01:29]} 79. Nc3 {[%emt 0:01:23]} Be8 {[%emt 0:00:42]} 80. Ne4 {[%emt 0:01:07]} Bd7 {[%emt 0:00:41]} 1/2-1/2

[Event "30th NATO Chess-ch 2019"]
[Site "Berlin"]
[Date "2019.09.20"]
[Round "7.8"]
[White "Tommasini, Enzo"]
[Black "Pedersen, Finn"]
[Result "0-1"]
[ECO "D19"]
[WhiteElo "2147"]
[BlackElo "2305"]
[Annotator "ChessBase"]
[PlyCount "86"]
[EventDate "2019.09.16"]
[EventType "swiss"]
[EventCountry "GER"]
[SourceTitle "playchess.com"]
[Source "ChessBase"]
[SourceQuality "1"]
[TimeControl "40/7200:1800"]

1. Nf3 {[%emt 2:00:00]} d5 {[%emt 1:54:13]} 2. d4 {[%emt 1:59:09]} c6 {[%emt 1:59:09]} 3. c4 {[%emt 1:55:24]} Nf6 {[%emt 1:53:28]} 4. Nc3 {[%emt 1:54:02]} dxc4 {[%emt 1:53:16]} 5. a4 {[%emt 1:53:42]} Bf5 {[%emt 1:53:11]} 6. e3 {[%emt 1:53:01]} e6 {[%emt 1:53:07]} 7. Bxc4 {[%emt 1:53:07]} Bb4 {[%emt 1:52:46]} 8. O-O {[%emt 1:53:02]} O-O {[%emt 1:53:02]} 9. Qe2 {[%emt 1:53:02]} Bg4 {[%emt 1:51:22]} 10. h3 {[%emt 1:47:18]} Bh5 {[%emt 1:50:39]} 11. g4 {[%emt 1:45:39]} Bg6 {[%emt 1:50:21]} 12. Ne5 {[%emt 1:50:21]} Nd5 {[%emt 1:44:09]} 13. Nxg6 {[%emt 1:44:16]} hxg6 {[%emt 1:43:58]} 14. Bd2 {[%emt 1:43:58]} Qa5 {[%emt 1:42:15]} 15. Ne4 {[%emt 1:42:15]} Nd7 {[%emt 1:37:17]} 16. Rfc1 {[%emt 1:32:44]} Rfe8 {[%emt 1:34:38]} 17. Bxb4 {[%emt 1:30:17]} Qxb4 {[%emt 1:34:23]} 18. Qd2 {[%emt 1:34:23]} Qe7 {[%emt 1:31:45]} 19. Nc5 {[%emt 1:04:43]} Nxc5 {[%emt 1:04:43]} 20. Bxd5 {[%emt 1:04:23]} exd5 {[%emt 1:04:23]} 21. Rxc5 {[%emt 1:04:19]} Qe4 {[%emt 1:04:19]} 22. Qd1 {[%emt 1:27:34]} f5 {[%emt 1:01:21]} 23. Ra3 {[%emt 1:25:57]} fxg4 {[%emt 1:21:05]} 24. Rc1 {[%emt 0:55:30]} gxh3 {[%emt 1:19:30]} 25. f3 {[%emt 1:19:30]} Qh4 {[%emt 1:17:36]} 26. Qf1 {[%emt 1:17:36]} Qg5+ {[%emt 0:52:56]} 27. Kf2 {[%emt 1:15:17]} Qh4+ {[%emt 1:13:17]} 28. Kg1 {[%emt 0:52:18]} Qg3+ {[%emt 0:52:18]} 29. Kh1 {[%emt 1:12:23]} Rf8 {[%emt 1:10:13]} 30. f4 {[%emt 1:10:13]} Rae8 {[%emt 1:08:16]} 31. Qg1 {[%emt 0:48:55]} Qf3+ {[%emt 0:48:55]} 32. Kh2 {[%emt 0:46:03]} Qe2+ {[%emt 0:46:03]} 33. Kxh3 {[%emt 0:45:26]} Qxb2 {[%emt 1:00:24]} 34. Rcc3 {[%emt 1:00:24]} Re6 {[%emt 0:44:32]} 35. Rcb3 {[%emt 0:40:10]} Qe2 {[%emt 0:53:59]} 36. Rxb7 {[%emt 0:36:12]} Qh5+ {[%emt 0:51:37]} 37. Kg3 {[%emt 0:51:37]} g5 {[%emt 0:51:17]} 38. Kf2 {[%emt 0:33:47]} Rxf4+ {[%emt 0:33:47]} 39. exf4 {[%emt 0:46:05]} Qe2+ {[%emt 0:27:09]} 40. Kg3 {[%emt 0:26:56]} gxf4+ {[%emt 0:26:56]} 41. Kh4 {[%emt 0:45:03]} Rh6+ {[%emt 0:26:25]} 42. Kg5 {[%emt 0:42:56]} Rh5+ {[%emt 0:25:47]} 43. Kxf4 {[%emt 0:24:29]} Rh4+ {[%emt 0:30:14]} 0-1

[Event "30th NATO Chess-ch 2019"]
[Site "Berlin"]
[Date "2019.09.20"]
[Round "7.9"]
[White "Binder, Tamas"]
[Black "Stentebjerg-Hansen, Per"]
[Result "1/2-1/2"]
[ECO "A81"]
[WhiteElo "2261"]
[BlackElo "2178"]
[Annotator "ChessBase"]
[PlyCount "37"]
[EventDate "2019.09.16"]
[EventType "swiss"]
[EventCountry "GER"]
[SourceTitle "playchess.com"]
[Source "ChessBase"]
[SourceQuality "1"]
[TimeControl "40/7200:1800"]

1. d4 {[%emt 1:59:04]} f5 {[%emt 1:59:04]} 2. Nf3 {[%emt 1:58:44]} Nf6 {[%emt 1:58:44]} 3. g3 {[%emt 1:58:40]} e6 {[%emt 1:58:07]} 4. Bg5 {[%emt 1:58:33]} d5 {[%emt 1:57:24]} 5. Bxf6 {[%emt 1:56:52]} Qxf6 {[%emt 1:55:08]} 6. e3 {[%emt 1:56:34]} Bd6 {[%emt 1:53:40]} 7. c4 {[%emt 1:53:40]} c6 {[%emt 1:50:36]} 8. Nc3 {[%emt 1:54:14]} O-O {[%emt 1:49:11]} 9. Qb3 {[%emt 1:49:11]} Kh8 {[%emt 1:46:13]} 10. Bg2 {[%emt 1:49:04]} Nd7 {[%emt 1:44:13]} 11. a3 {[%emt 1:48:31]} dxc4 {[%emt 1:40:52]} 12. Qxc4 {[%emt 1:40:52]} e5 {[%emt 1:39:36]} 13. O-O {[%emt 1:45:38]} e4 {[%emt 1:45:38]} 14. Nd2 {[%emt 1:45:24]} Nb6 {[%emt 1:35:44]} 15. Qe2 {[%emt 1:35:44]} Be6 {[%emt 1:35:09]} 16. f3 {[%emt 1:35:09]} Z0 17. Ncb1 Qd8 18. Z0 {Rh8 ---} Bc8 19. Z0 {Bf8} 1/2-1/2

[Event "30th NATO Chess-ch 2019"]
[Site "Berlin"]
[Date "2019.09.20"]
[Round "7.10"]
[White "Mestek, Igor"]
[Black "Lakos, Nikoletta"]
[Result "1/2-1/2"]
[ECO "B07"]
[WhiteElo "2087"]
[BlackElo "2226"]
[Annotator "ChessBase"]
[PlyCount "29"]
[EventDate "2019.09.16"]
[EventType "swiss"]
[EventCountry "GER"]
[SourceTitle "playchess.com"]
[Source "ChessBase"]
[SourceQuality "1"]
[TimeControl "40/7200:1800"]

1. e4 {[%emt 2:00:00]} d6 {[%emt 1:59:13]} 2. d4 {[%emt 1:59:31]} Nf6 {[%emt 1:59:09]} 3. f3 {[%emt 1:58:51]} e5 {[%emt 1:58:51]} 4. dxe5 {[%emt 1:57:35]} dxe5 {[%emt 1:51:33]} 5. Qxd8+ {[%emt 1:51:33]} Kxd8 {[%emt 1:51:28]} 6. Bc4 {[%emt 1:57:01]} Be6 {[%emt 1:49:26]} 7. Bxe6 {[%emt 1:56:51]} fxe6 {[%emt 1:49:24]} 8. Be3 {[%emt 1:55:55]} Bd6 {[%emt 1:55:55]} 9. Nh3 {[%emt 1:54:56]} Ke7 {[%emt 1:40:00]} 10. Nd2 {[%emt 1:40:00]} Nc6 {[%emt 1:50:53]} 11. c3 {[%emt 1:49:29]} h6 {[%emt 1:49:29]} 12. Nf2 {[%emt 1:48:56]} b5 {[%emt 1:48:56]} 13. a3 {[%emt 1:46:20]} Nd7 {[%emt 0:55:24]} 14. Nd3 {[%emt 1:45:39]} a5 {[%emt 1:45:39]} 15. Ke2 {[%emt 1:43:12]} 1/2-1/2